bitfinex/quotes_BTCUSD_20250124
["timestamp","ask_amount","ask_price","bid_price","bid_amount"]
[1737694223051,0.00129904,104490.0,104480.0,0.23535457]
[1737694223198,0.00129904,104490.0,104480.0,0.23735457]
[1737694223376,0.00129904,104490.0,104480.0,0.52937397]
[1737694223577,0.00129904,104490.0,104480.0,0.42380186]
[1737694223776,0.00129904,104490.0,104480.0,0.55237397]
[1737694223999,0.00129904,104490.0,104480.0,0.57237397]
[1737694224187,0.00029904,104490.0,104480.0,0.56837397]
[1737694224413,0.00029904,104490.0,104480.0,0.57037397]
[1737694224619,0.00229904,104490.0,104480.0,0.57237397]
[1737694225708,0.00229904,104490.0,104480.0,0.60176633]
[1737694228451,0.00229904,104490.0,104480.0,0.60190853]
[1737694228675,0.00229904,104490.0,104480.0,0.47633642]
[1737694228870,0.00229904,104490.0,104480.0,0.49633642]
[1737694229027,0.00229904,104490.0,104480.0,0.60190853]
[1737694230332,0.00229904,104490.0,104480.0,0.58190853]
[1737694230522,0.00229904,104490.0,104480.0,0.47633642]
[1737694231587,0.00229904,104490.0,104480.0,0.23749677]
[1737694232231,0.00496305,104490.0,104480.0,0.23749677]
[1737694232370,0.00229904,104490.0,104480.0,0.23749677]
[1737694232587,0.00496248,104490.0,104480.0,0.23749677]
[1737694233222,0.10066448,104490.0,104480.0,0.08749677]
[1737694233424,0.00496248,104490.0,104480.0,0.08749677]
[1737694233623,0.00229904,104490.0,104480.0,0.23749677]
[1737694234007,0.00429816,104490.0,104480.0,0.23549677]
[1737694234233,0.00329816,104490.0,104480.0,0.23349677]
[1737694234437,0.00429816,104490.0,104480.0,0.24249677]
[1737694234945,0.00329816,104490.0,104480.0,0.23349677]
[1737694235151,0.00429816,104490.0,104480.0,0.24049677]
[1737694235373,0.00529816,104490.0,104480.0,0.24249677]
[1737694236012,0.00429816,104490.0,104480.0,0.24049677]
[1737694236438,0.00129904,104490.0,104480.0,0.24249677]
[1737694236620,0.00430431,104490.0,104480.0,0.24249677]
[1737694237745,0.00430431,104490.0,104480.0,0.44541617]
[1737694237980,0.00430431,104490.0,104480.0,0.47841617]
[1737694238188,0.00129904,104490.0,104480.0,0.58151617]
[1737694238400,0.00129904,104490.0,104480.0,0.61093954]
[1737694238614,4e-08,104490.0,104480.0,1.47403954]
[1737694239013,4e-08,104490.0,104480.0,1.47203954]
[1737694239387,0.00100004,104490.0,104480.0,1.47403954]
[1737694239590,0.00100004,104490.0,104480.0,2.33733954]
[1737694239753,4e-08,104490.0,104480.0,2.79387954]
[1737694240487,0.00029862,104490.0,104480.0,2.79687954]
[1737694240690,0.00129862,104490.0,104480.0,2.80887954]
[1737694240925,0.00229862,104490.0,104480.0,2.81787954]
[1737694241101,0.00229862,104490.0,104480.0,2.80887954]
[1737694241311,0.00229862,104490.0,104480.0,2.81787954]
[1737694242095,0.00229862,104490.0,104480.0,2.83661796]
[1737694246037,0.00129862,104490.0,104480.0,2.83461796]
[1737694246245,0.00229862,104490.0,104480.0,2.83961796]
[1737694246661,0.00229862,104490.0,104480.0,2.81961796]
[1737694246859,0.00129862,104490.0,104480.0,2.83461796]
[1737694247064,0.00029862,104490.0,104480.0,2.82561796]
[1737694247282,0.00129862,104490.0,104480.0,2.83061796]
[1737694247406,0.00229862,104490.0,104480.0,2.83961796]
[1737694247914,0.00329862,104490.0,104480.0,2.84861796]
[1737694249194,0.00329862,104490.0,104480.0,2.86861796]
[1737694249627,0.00329862,104490.0,104480.0,2.84861796]
[1737694250708,6.2e-07,104490.0,104480.0,2.84861796]
[1737694251131,6.2e-07,104490.0,104480.0,2.82861796]
[1737694251957,6.2e-07,104490.0,104480.0,2.84861796]
[1737694252578,2.4e-07,104490.0,104480.0,2.84861796]
[1737694253459,2.4e-07,104490.0,104480.0,2.82861796]
[1737694253667,2.4e-07,104490.0,104480.0,2.84861796]
[1737694257358,2.4e-07,104490.0,104480.0,2.76551796]
[1737694259012,2.4e-07,104490.0,104480.0,2.78551796]
[1737694262596,2.4e-07,104490.0,104480.0,1.05911796]
[1737694263901,2.4e-07,104490.0,104480.0,1.29064585]
[1737694264110,2.4e-07,104490.0,104480.0,1.17456014]
[1737694264314,2.4e-07,104490.0,104480.0,1.14513677]
[1737694264560,0.00342487,104490.0,104480.0,1.24248406]
[1737694264760,0.00342487,104490.0,104480.0,1.56051076]
[1737694264969,2.4e-07,104490.0,104480.0,1.56051076]
[1737694265171,2.4e-07,104490.0,104480.0,1.53751076]
[1737694265366,2.4e-07,104490.0,104480.0,1.54151076]
[1737694265696,2.4e-07,104490.0,104480.0,1.55051076]
[1737694265902,2.4e-07,104490.0,104480.0,1.00641076]
[1737694266353,0.07729483,104520.0,104510.0,0.245684]
[1737694266573,0.07729483,104520.0,104510.0,0.9887034]
[1737694266789,0.08068534,104520.0,104510.0,0.88313129]
[1737694267016,0.00049483,104520.0,104510.0,2.1663234]
[1737694267236,3.4e-07,104520.0,104510.0,2.19575314]
[1737694267450,0.08049904,104540.0,104530.0,0.245666]
[1737694267814,0.08428849,104540.0,104530.0,0.245666]
[1737694269114,0.08528849,104540.0,104530.0,0.254666]
[1737694269321,0.18094549,104540.0,104530.0,0.257666]
[1737694269523,0.42906489,104540.0,104530.0,0.162]
[1737694269738,0.42906489,104540.0,104530.0,0.012]
[1737694269956,0.0773,104520.0,104510.0,0.4785624]
[1737694270131,0.32374711,104520.0,104510.0,0.5742464]
[1737694270287,0.42486472,104520.0,104510.0,0.4785624]
[1737694270856,0.4210944,104520.0,104510.0,0.6285624]
[1737694271064,0.42483458,104520.0,104510.0,0.4785624]
[1737694271310,0.42583458,104520.0,104510.0,0.4875624]
[1737694271518,0.42583458,104520.0,104510.0,0.6285624]
[1737694271715,0.42983458,104520.0,104510.0,0.6285624]
[1737694272454,0.43183458,104520.0,104510.0,0.6285624]
[1737694273013,0.43183458,104520.0,104510.0,0.4785624]
[1737694273224,0.52918187,104520.0,104510.0,0.4785624]
[1737694273432,0.63475398,104520.0,104510.0,0.5004624]
[1737694273635,0.63475398,104520.0,104510.0,0.3504624]
[1737694273840,1.22918187,104520.0,104510.0,0.5004624]
[1737694274038,1.33475398,104520.0,104510.0,0.3504624]
[1737694274292,1.13183458,104520.0,104510.0,0.3504624]
[1737694274508,1.13183458,104520.0,104510.0,0.5004624]
[1737694275134,1.1321332,104520.0,104510.0,0.5004624]
[1737694277330,1.02795837,104520.0,104510.0,0.5961464]
[1737694277740,1.02795837,104520.0,104510.0,0.5004624]
[1737694277954,1.02795837,104520.0,104510.0,0.5961464]
[1737694278154,0.32795837,104520.0,104510.0,0.5004624]
[1737694278361,0.32595837,104520.0,104510.0,0.5004624]
[1737694278579,0.32095837,104520.0,104510.0,0.5971464]
[1737694278822,0.32195837,104520.0,104510.0,0.4511464]
[1737694279423,0.32195837,104520.0,104510.0,0.3508424]
[1737694279637,0.32195837,104520.0,104510.0,0.4465264]
[1737694280049,0.12893608,104520.0,104510.0,0.4465264]
[1737694280298,0.22461108,104520.0,104510.0,0.4465264]
[1737694281198,0.22461108,104520.0,104510.0,0.3508424]
[1737694281417,0.22461108,104520.0,104510.0,0.4465264]
[1737694282248,0.33018319,104520.0,104510.0,0.4465264]
[1737694282447,0.33018319,104520.0,104510.0,0.3508424]
[1737694282865,0.33018319,104520.0,104510.0,0.4465264]
[1737694283063,0.33018319,104520.0,104510.0,0.3508424]
[1737694284047,0.33018319,104520.0,104510.0,0.4465264]
[1737694284456,0.33018319,104520.0,104510.0,0.3508424]
[1737694284457,0.42753048,104520.0,104510.0,0.3508424]
[1737694285293,0.42753048,104520.0,104510.0,0.4465264]
[1737694285461,0.42753048,104520.0,104510.0,0.3508424]
[1737694285668,0.42753048,104520.0,104510.0,0.4465264]
[1737694287071,0.42753048,104520.0,104510.0,0.3509846]
[1737694287283,0.42753048,104520.0,104510.0,0.4466686]
[1737694287494,0.42753048,104520.0,104510.0,0.3509846]
[1737694287684,0.42753048,104520.0,104510.0,0.4466686]
[1737694288051,0.42753048,104520.0,104510.0,0.3509846]
[1737694290567,0.42653048,104520.0,104510.0,0.3459846]
[1737694290984,0.43153048,104520.0,104510.0,0.3459846]
[1737694291602,0.43353048,104520.0,104510.0,0.3459846]
[1737694295044,0.53910259,104520.0,104510.0,0.3459846]
[1737694295232,0.57200159,104520.0,104510.0,0.3459846]
[1737694295370,1.27200159,104520.0,104510.0,0.3459846]
[1737694295575,1.36934888,104520.0,104510.0,0.3459846]
[1737694296169,1.37964702,104520.0,104510.0,0.3459846]
[1737694296744,1.37964702,104520.0,104510.0,0.0002846]
[1737694297145,1.39833742,104520.0,104510.0,0.0002846]
[1737694297383,1.42133742,104520.0,104510.0,0.0002846]
[1737694299826,1.45231478,104520.0,104510.0,0.0002846]
[1737694300705,1.45731478,104520.0,104510.0,0.0002846]
[1737694300885,1.45531478,104520.0,104510.0,0.0002846]
[1737694301121,1.46431478,104520.0,104510.0,0.0012846]
[1737694302023,1.45431478,104520.0,104510.0,6e-07]
[1737694302224,1.57491478,104520.0,104510.0,6e-07]
[1737694302360,0.43014622,104490.0,104480.0,0.0001422]
[1737694302590,0.58377197,104490.0,104480.0,0.0001422]
[1737694302792,1.2886498,104490.0,104480.0,0.0001422]
[1737694303190,1.38599709,104490.0,104480.0,0.0001422]
[1737694303432,1.31962716,104490.0,104480.0,0.0001422]
[1737694303774,1.31962716,104490.0,104480.0,0.0031422]
[1737694303994,0.254512,104480.0,104470.0,0.03631036]
[1737694304175,0.254512,104480.0,104470.0,0.01673099]
[1737694304176,1.21205759,104480.0,104470.0,0.01673099]
[1737694304382,1.2169422,104480.0,104470.0,0.01673099]
[1737694305368,1.2169422,104480.0,104470.0,0.01722582]
[1737694305997,1.34651431,104480.0,104470.0,0.01822582]
[1737694306124,1.2599662,104480.0,104470.0,0.01822582]
[1737694306325,1.2499662,104480.0,104470.0,0.01822582]
[1737694306757,1.18534001,104480.0,104470.0,0.01822582]
[1737694307187,1.21898884,104480.0,104470.0,0.01822582]
[1737694308000,1.31633613,104480.0,104470.0,0.01822582]
[1737694308198,1.21898884,104480.0,104470.0,0.01822582]
[1737694308404,1.2499662,104480.0,104470.0,0.01822582]
[1737694309034,1.2269662,104480.0,104470.0,0.01822582]
[1737694309242,1.19598884,104480.0,104470.0,0.01822582]
[1737694309455,1.21898884,104480.0,104470.0,0.01822582]
[1737694309851,1.19598884,104480.0,104470.0,0.01822582]
[1737694310821,1.19628767,104480.0,104470.0,0.01822582]
[1737694315281,1.16263884,104480.0,104470.0,0.01822582]
[1737694316325,1.03683884,104480.0,104470.0,0.01822582]
[1737694318745,1.01781484,104480.0,104470.0,0.01822582]
[1737694321294,1.22752318,104480.0,104470.0,0.01822582]
[1737694321493,1.28177185,104480.0,104470.0,0.01822582]
[1737694321704,1.43574396,104480.0,104470.0,0.01822582]
[1737694322130,1.44574396,104480.0,104470.0,0.01822582]
[1737694322335,1.34017185,104480.0,104470.0,0.01822582]
[1737694323234,1.23282456,104480.0,104470.0,0.01822582]
[1737694323871,1.14391484,104480.0,104470.0,0.01822582]
[1737694325117,1.17857589,104480.0,104470.0,0.01822582]
[1737694325737,1.06621484,104480.0,104470.0,0.01822582]
[1737694325942,0.81653073,104480.0,104470.0,0.11394682]
[1737694326511,0.71918344,104480.0,104470.0,0.11394682]
[1737694327130,0.71418344,104480.0,104470.0,0.11294682]
[1737694327340,0.00518344,104480.0,104470.0,0.11294682]
[1737694327546,0.01018344,104480.0,104470.0,0.11294682]
[1737694328620,0.01018344,104480.0,104470.0,0.65304682]
[1737694329051,0.01018344,104480.0,104470.0,0.73394682]
[1737694329671,0.10589544,104480.0,104470.0,0.73394682]
[1737694329887,0.01018344,104480.0,104470.0,0.73394682]
[1737694330101,0.00718344,104480.0,104470.0,0.73394682]
[1737694330463,0.00818344,104480.0,104470.0,0.73394682]
[1737694330659,0.00518344,104480.0,104470.0,0.73394682]
[1737694331064,0.00618344,104480.0,104470.0,0.73394682]
[1737694331526,0.00618344,104480.0,104470.0,0.73794682]
[1737694331733,0.00718344,104480.0,104470.0,0.73794682]
[1737694332164,0.00718344,104480.0,104470.0,0.73394682]
[1737694332365,0.00229883,104480.0,104470.0,0.73394682]
[1737694332759,0.00803464,104480.0,104470.0,0.73394682]
[1737694333351,0.00803464,104480.0,104470.0,0.73694682]
[1737694334372,0.00803464,104480.0,104470.0,0.83429411]
[1737694335543,0.00229883,104480.0,104470.0,0.99956622]
[1737694336605,0.00229883,104480.0,104470.0,0.89399411]
[1737694336940,0.00229883,104480.0,104470.0,0.89099411]
[1737694337139,0.00029883,104480.0,104470.0,1.00644594]
[1737694337323,0.00129883,104480.0,104470.0,1.01944594]
[1737694339201,0.00129883,104480.0,104470.0,1.16944594]
[1737694340055,0.00129883,104480.0,104470.0,1.21244594]
[1737694340285,0.00129883,104480.0,104470.0,1.15944594]
[1737694342476,0.00129883,104480.0,104470.0,1.21244594]
[1737694343180,0.00129883,104480.0,104470.0,1.20244594]
[1737694343368,0.00129883,104480.0,104470.0,1.15944594]
[1737694343568,0.00129883,104480.0,104470.0,1.18944594]
[1737694343746,0.00129883,104480.0,104470.0,1.21244594]
[1737694345653,0.00129883,104480.0,104470.0,2.39874594]
[1737694347909,0.00129883,104480.0,104470.0,2.38874594]
[1737694348285,0.00129883,104480.0,104470.0,2.39874594]
[1737694348995,0.00129883,104480.0,104470.0,2.38874594]
[1737694349432,0.00703737,104480.0,104470.0,2.39874594]
[1737694349663,0.00129883,104480.0,104470.0,2.39874594]
[1737694353250,0.00129883,104480.0,104470.0,2.42807291]
[1737694353478,0.00129883,104480.0,104470.0,2.24874594]
[1737694353702,0.00029862,104520.0,104510.0,0.095684]
[1737694354188,0.00622787,104520.0,104510.0,0.095684]
[1737694355116,0.00622787,104520.0,104510.0,0.09582659]
[1737694356238,0.00622787,104520.0,104510.0,0.10182659]
[1737694359253,0.30482227,104520.0,104510.0,0.00614259]
[1737694359523,0.63260801,104520.0,104510.0,0.00614259]
[1737694359701,0.60499713,104520.0,104510.0,0.00614259]
[1737694359918,0.46640362,104520.0,104510.0,0.00614259]
[1737694360326,1.16640362,104520.0,104510.0,0.00014259]
[1737694360476,1.17140362,104520.0,104510.0,0.00014259]
[1737694360679,1.18453353,104520.0,104510.0,0.00014259]
[1737694360880,1.16940362,104520.0,104510.0,0.00014259]
[1737694362286,1.1794598,104520.0,104510.0,0.00014259]
[1737694362724,1.1854598,104520.0,104510.0,0.00114259]
[1737694363047,1.1854598,104520.0,104510.0,0.00214259]
[1737694363048,1.1914598,104520.0,104510.0,0.00214259]
[1737694365667,1.15667845,104520.0,104510.0,0.00214259]
[1737694367173,1.35959785,104520.0,104510.0,0.00214259]
[1737694367331,1.3943792,104520.0,104510.0,0.00214259]
[1737694368335,1.29703191,104520.0,104510.0,0.00214259]
[1737694369165,1.32003191,104520.0,104510.0,0.00214259]
[1737694370578,1.29703191,104520.0,104510.0,0.00214259]
[1737694372090,1.33005331,104520.0,104510.0,0.00214259]
[1737694375054,1.35305331,104520.0,104510.0,0.00214259]
[1737694375962,1.32003191,104520.0,104510.0,0.00214259]
[1737694377874,1.15667845,104520.0,104510.0,0.00214259]
[1737694378712,1.26225056,104520.0,104510.0,0.00214259]
[1737694379766,1.31375031,104520.0,104510.0,0.00214259]
[1737694379934,1.28525056,104520.0,104510.0,0.00214259]
[1737694380917,1.3201752,104520.0,104510.0,0.00214259]
[1737694382556,1.3831966,104520.0,104510.0,0.00214259]
[1737694383292,1.3531966,104520.0,104510.0,0.00214259]
[1737694383498,1.3201752,104520.0,104510.0,0.00214259]
[1737694384537,1.45983861,104520.0,104510.0,0.00214259]
[1737694384972,1.47983861,104520.0,104510.0,0.00214259]
[1737694385111,1.46983861,104520.0,104510.0,5.9e-07]
[1737694385327,1.44983861,104520.0,104510.0,5.9e-07]
[1737694386228,0.095702,104490.0,104480.0,0.0001422]
[1737694386426,1.13911815,104490.0,104480.0,0.0001422]
[1737694387091,1.14395415,104490.0,104480.0,0.0001422]
[1737694388074,1.23078369,104490.0,104480.0,0.0001422]
[1737694388492,1.33138369,104490.0,104480.0,0.0001422]
[1737694388722,1.39868369,104490.0,104480.0,0.0011422]
[1737694389123,1.41868369,104490.0,104480.0,0.0011422]
[1737694389545,1.42568369,104490.0,104480.0,0.0021422]
[1737694391526,1.44485158,104490.0,104480.0,0.0021422]
[1737694393822,1.39050012,104490.0,104480.0,0.0021422]
[1737694394342,1.40050012,104490.0,104480.0,0.0021422]
[1737694397117,1.39050012,104490.0,104480.0,0.0021422]
[1737694397446,1.40050012,104490.0,104480.0,0.0021422]
[1737694399648,1.41250012,104490.0,104480.0,0.0021422]
[1737694400855,1.37050012,104490.0,104480.0,0.0021422]
[1737694402503,1.371995,104490.0,104480.0,0.0021422]
[1737694402725,1.08520677,104490.0,104480.0,0.0021422]
[1737694402916,1.19077888,104490.0,104480.0,0.0021422]
[1737694404069,1.08520677,104490.0,104480.0,0.0021422]
[1737694405034,1.19077888,104490.0,104480.0,0.0021422]
[1737694405278,1.08520677,104490.0,104480.0,0.0021422]
[1737694405701,1.05028213,104490.0,104480.0,0.0021422]
[1737694407475,1.19077888,104490.0,104480.0,0.0021422]
[1737694407684,1.223095,104490.0,104480.0,0.0021422]
[1737694409950,1.305295,104490.0,104480.0,0.0021422]
[1737694411046,1.328295,104490.0,104480.0,0.0021422]
[1737694418582,1.328295,104490.0,104480.0,0.0036222]
[1737694419842,1.42564229,104490.0,104480.0,0.0036222]
[1737694420859,1.328295,104490.0,104480.0,0.0036222]
[1737694423361,1.404495,104490.0,104480.0,0.0036222]
[1737694426060,1.404495,104490.0,104480.0,2e-07]
[1737694426262,1.37255933,104490.0,104480.0,2e-07]
[1737694426459,1.40534466,104490.0,104480.0,2e-07]
[1737694426691,1.50269195,104490.0,104480.0,2e-07]
[1737694427577,1.50269195,104490.0,104480.0,0.0001424]
[1737694428937,1.47269195,104490.0,104480.0,4e-07]
[1737694429181,0.29450242,104480.0,104470.0,3.9e-07]
[1737694429403,1.45603703,104480.0,104470.0,3.9e-07]
[1737694430446,1.45603703,104480.0,104470.0,0.00049522]
[1737694430903,1.35868974,104480.0,104470.0,0.00049522]
[1737694431516,1.32868974,104480.0,104470.0,0.00049522]
[1737694431767,1.34868974,104480.0,104470.0,0.00049522]
[1737694431999,1.36568974,104480.0,104470.0,0.00049522]
[1737694432863,1.24011763,104480.0,104470.0,0.00049522]
[1737694433058,1.34568974,104480.0,104470.0,0.00049522]
[1737694433919,1.24011763,104480.0,104470.0,0.00049522]
[1737694434396,1.11301763,104480.0,104470.0,0.00049522]
[1737694449925,1.09001763,104480.0,104470.0,0.00049522]
[1737694450133,1.02192721,104480.0,104470.0,0.00049522]
[1737694450806,0.8206431,104480.0,104470.0,0.22731622]
[1737694451022,0.92421453,104480.0,104470.0,0.22731622]
[1737694451239,1.01992653,104480.0,104470.0,0.22731622]
[1737694451452,1.01992653,104480.0,104470.0,0.08269522]
[1737694451669,1.05822674,104480.0,104470.0,0.08269522]
[1737694451898,1.04922674,104480.0,104470.0,0.08269522]
[1737694452119,1.15557403,104480.0,104470.0,0.00049522]
[1737694452355,1.20347847,104480.0,104470.0,0.00049522]
[1737694452729,1.21047847,104480.0,104470.0,0.00049522]
[1737694453152,1.20347847,104480.0,104470.0,0.00049522]
[1737694453565,1.20947847,104480.0,104470.0,0.00049522]
[1737694455938,1.21951845,104480.0,104470.0,0.00049522]
[1737694457001,1.12217116,104480.0,104470.0,0.00049522]
[1737694457818,1.28274327,104480.0,104470.0,0.00049522]
[1737694458453,1.17717116,104480.0,104470.0,0.00049522]
[1737694460001,1.28274327,104480.0,104470.0,0.00049522]
[1737694460390,1.14426672,104480.0,104470.0,0.00049522]
[1737694461075,1.34718612,104480.0,104470.0,0.00049522]
[1737694461685,1.24161401,104480.0,104470.0,0.00049522]
[1737694462095,1.2948337,104480.0,104470.0,0.00049522]
[1737694462353,1.29513232,104480.0,104470.0,0.00049522]
[1737694462901,1.38070443,104480.0,104470.0,0.00049522]
[1737694463106,1.47960443,104480.0,104470.0,0.00049522]
[1737694463307,1.37403232,104480.0,104470.0,0.00049522]
[1737694463515,1.36403232,104480.0,104470.0,0.00049522]
[1737694463909,1.26768503,104480.0,104470.0,0.00049522]
[1737694464173,1.26668503,104480.0,104470.0,0.00049522]
[1737694464401,1.26068503,104480.0,104470.0,0.00049522]
[1737694465470,1.22468503,104480.0,104470.0,0.00049522]
[1737694465675,1.14578503,104480.0,104470.0,0.00049522]
[1737694465883,1.15178503,104480.0,104470.0,0.00049522]
[1737694466286,1.14578503,104480.0,104470.0,0.00049522]
[1737694466514,1.15178503,104480.0,104470.0,0.00049522]
[1737694469143,1.24913232,104480.0,104470.0,0.00049522]
[1737694469650,1.15178503,104480.0,104470.0,0.00049522]
[1737694470711,1.09856534,104480.0,104470.0,0.00049522]
[1737694470917,1.03942121,104480.0,104470.0,0.00049522]
[1737694473425,0.73074983,104480.0,104470.0,0.22421622]
[1737694473668,0.72429862,104480.0,104470.0,0.22421622]
[1737694473899,0.72855192,104480.0,104470.0,0.22421622]
[1737694474127,0.82589921,104480.0,104470.0,0.12849522]
[1737694474354,0.82589921,104480.0,104470.0,0.07879522]
[1737694474355,0.32118332,104480.0,104470.0,0.07879522]
[1737694474580,0.30533944,104480.0,104470.0,0.00049522]
[1737694475002,0.30933944,104480.0,104470.0,0.00049522]
[1737694475194,1.00533944,104480.0,104470.0,0.00049522]
[1737694475409,1.10268673,104480.0,104470.0,0.00049522]
[1737694475631,1.10468673,104480.0,104470.0,0.00049522]
[1737694475852,1.12768673,104480.0,104470.0,0.00049522]
[1737694476072,1.20968673,104480.0,104470.0,0.00049522]
[1737694476277,1.20768673,104480.0,104470.0,0.00049522]
[1737694476952,1.21368673,104480.0,104470.0,0.00049522]
[1737694477425,1.20068673,104480.0,104470.0,0.00049522]
[1737694477631,1.21668673,104480.0,104470.0,0.00049522]
[1737694478166,1.22568673,104480.0,104470.0,0.00049522]
[1737694478389,1.23568673,104480.0,104470.0,0.00049522]
[1737694479084,1.25515733,104480.0,104470.0,0.00049522]
[1737694479285,1.28715164,104480.0,104470.0,0.00049522]
[1737694479492,1.18980435,104480.0,104470.0,0.00049522]
[1737694481332,1.19945532,104480.0,104470.0,0.00049522]
[1737694481891,1.08246101,104480.0,104470.0,0.00049522]
[1737694484240,1.07546101,104480.0,104470.0,0.00049522]
[1737694484497,1.05746101,104480.0,104470.0,0.00049522]
[1737694484948,1.06646101,104480.0,104470.0,0.00049522]
[1737694485330,1.04346101,104480.0,104470.0,0.00049522]
[1737694485479,0.9378889,104480.0,104470.0,0.00049522]
[1737694486107,1.04346101,104480.0,104470.0,0.00049522]
[1737694486313,1.05046101,104480.0,104470.0,0.00049522]
[1737694486879,1.04346101,104480.0,104470.0,0.00049522]
[1737694487098,1.04946101,104480.0,104470.0,0.00049522]
[1737694489788,0.9438889,104480.0,104470.0,0.09621622]
[1737694489990,0.93423793,104480.0,104470.0,0.00049522]
[1737694491254,0.91476733,104480.0,104470.0,0.17681622]
[1737694491678,0.91476733,104480.0,104470.0,0.08109522]
[1737694493473,0.91476733,104480.0,104470.0,0.17681622]
[1737694493854,0.91476733,104480.0,104470.0,0.08109522]
[1737694497315,0.91476733,104480.0,104470.0,0.32681622]
[1737694497491,0.81905533,104480.0,104470.0,0.32681622]
[1737694498562,0.91476733,104480.0,104470.0,0.32681622]
[1737694498767,0.81905533,104480.0,104470.0,0.32681622]
[1737694499247,0.91476733,104480.0,104470.0,0.32681622]
[1737694499475,0.91476733,104480.0,104470.0,0.17681622]
[1737694499663,0.81905533,104480.0,104470.0,0.17681622]
[1737694501297,0.91476733,104480.0,104470.0,0.17681622]
[1737694501515,0.81905533,104480.0,104470.0,0.17681622]
[1737694502864,0.81905533,104480.0,104470.0,0.17181622]
[1737694505027,0.91476733,104480.0,104470.0,0.17181622]
[1737694505261,0.81905533,104480.0,104470.0,0.17181622]
[1737694506377,0.81905533,104480.0,104470.0,0.71191622]
[1737694507474,0.81689743,104480.0,104470.0,0.71191622]
[1737694508126,0.81689743,104480.0,104470.0,0.71205842]
[1737694508809,0.81896805,104480.0,104470.0,0.71205842]
[1737694509160,0.81686067,104480.0,104470.0,0.71205842]
[1737694509575,0.81896805,104480.0,104470.0,0.71205842]
[1737694510020,1.02025216,104480.0,104470.0,0.61633742]
[1737694510227,1.02025216,104480.0,104470.0,0.6359632]
[1737694510649,1.01819443,104480.0,104470.0,0.6359632]
[1737694510847,0.81691032,104480.0,104470.0,0.6359632]
[1737694511269,0.91262232,104480.0,104470.0,0.6359632]
[1737694512164,0.81691032,104480.0,104470.0,0.0958632]
[1737694514984,0.81691032,104480.0,104470.0,0.1772632]
[1737694515402,0.71956303,104480.0,104470.0,0.1772632]
[1737694515610,0.01956303,104480.0,104470.0,0.1772632]
[1737694516631,0.01056303,104480.0,104470.0,0.1772632]
[1737694516774,0.01756303,104480.0,104470.0,0.1772632]
[1737694516974,0.01156303,104480.0,104470.0,0.1772632]
[1737694517189,0.00456303,104480.0,104470.0,0.1772632]
[1737694517405,0.10427503,104480.0,104470.0,0.1812632]
[1737694517602,0.00856303,104480.0,104470.0,0.1812632]
[1737694517826,0.30419443,104480.0,104470.0,0.0041422]
[1737694518052,0.30419443,104480.0,104470.0,0.0061422]
[1737694518673,1.00419443,104480.0,104470.0,0.0061422]
[1737694518880,1.00419443,104480.0,104470.0,0.0041422]
[1737694519520,1.00319443,104480.0,104470.0,0.0001422]
[1737694519922,1.00419443,104480.0,104470.0,0.0001422]
[1737694520094,1.00519443,104480.0,104470.0,0.0001422]
[1737694520554,1.00919443,104480.0,104470.0,0.0001422]
[1737694520759,1.00819443,104480.0,104470.0,0.0001422]
[1737694520922,1.01019443,104480.0,104470.0,0.0001422]
[1737694521923,0.90462232,104480.0,104470.0,0.0001422]
[1737694522124,0.90462232,104480.0,104470.0,0.0958632]
[1737694522349,0.80891032,104480.0,104470.0,0.0958632]
[1737694523229,0.90462232,104480.0,104470.0,0.0958632]
[1737694526762,0.80891032,104480.0,104470.0,0.0958632]
[1737694526973,0.90462232,104480.0,104470.0,0.0958632]
[1737694529478,0.80891032,104480.0,104470.0,0.0958632]
[1737694530101,0.90462232,104480.0,104470.0,0.0958632]
[1737694530308,0.80691032,104480.0,104470.0,0.0958632]
[1737694530727,0.80791032,104480.0,104470.0,0.0958632]
[1737694531135,0.80691032,104480.0,104470.0,0.0958632]
[1737694531635,0.80691032,104480.0,104470.0,0.0978632]
[1737694531853,0.80191032,104480.0,104470.0,0.0978632]
[1737694532392,0.80291032,104480.0,104470.0,0.1018632]
[1737694533179,0.70556101,104480.0,104470.0,0.1018632]
[1737694533607,0.00556101,104480.0,104470.0,0.1018632]
[1737694535836,0.00556101,104480.0,104470.0,0.6419632]
[1737694538652,0.1029083,104480.0,104470.0,0.6419632]
[1737694542691,0.00556101,104480.0,104470.0,0.7706632]
[1737694547213,0.00556101,104480.0,104470.0,0.7686632]
[1737694547427,0.00456101,104480.0,104470.0,0.7646632]
[1737694547555,0.00456101,104480.0,104470.0,0.7676632]
[1737694548208,0.00456101,104480.0,104470.0,0.7200632]
[1737694549040,0.00456101,104480.0,104470.0,0.7170632]
[1737694549239,0.00456101,104480.0,104470.0,0.7300632]
[1737694549457,0.00556101,104480.0,104470.0,0.7300632]
[1737694549662,0.00556101,104480.0,104470.0,0.7210632]
[1737694549834,0.00556101,104480.0,104470.0,0.7290632]
[1737694550055,0.00656101,104480.0,104470.0,0.7759632]
[1737694550269,0.00656101,104480.0,104470.0,0.7719632]
[1737694550679,0.00656101,104480.0,104470.0,0.7749632]
[1737694551096,0.00229862,104480.0,104470.0,0.7749632]
[1737694552014,0.00650954,104480.0,104470.0,0.7749632]
[1737694555867,0.00229862,104480.0,104470.0,0.7749632]
[1737694556130,0.00651338,104480.0,104470.0,0.7749632]
[1737694558190,0.00651338,104480.0,104470.0,0.80458007]
[1737694558404,0.00651338,104480.0,104470.0,0.7749632]
[1737694558899,0.00651338,104480.0,104470.0,0.80459242]
[1737694559054,0.00651338,104480.0,104470.0,0.7749632]
[1737694559470,0.00651338,104480.0,104470.0,0.9249632]
[1737694559875,0.00651338,104480.0,104470.0,0.9545896]
[1737694560032,0.00651338,104480.0,104470.0,1.06016171]
[1737694560254,0.00229862,104480.0,104470.0,1.06016171]
[1737694560686,0.00649132,104480.0,104470.0,1.06016171]
[1737694561025,0.00229862,104480.0,104470.0,1.06016171]
[1737694562035,0.00654888,104480.0,104470.0,1.06016171]
[1737694562219,0.00229862,104480.0,104470.0,1.06016171]
[1737694563696,0.00229862,104480.0,104470.0,0.9545896]
[1737694564148,0.00229862,104480.0,104470.0,1.06016171]
[1737694566843,0.00229862,104480.0,104470.0,0.9545896]
[1737694567852,0.00229862,104480.0,104470.0,1.05193689]
[1737694568055,0.00229862,104480.0,104470.0,1.157509]
[1737694571917,6.2e-07,104480.0,104470.0,1.060509]
[1737694572542,2.4e-07,104490.0,104480.0,0.095712]
[1737694572743,2.4e-07,104490.0,104480.0,0.4775578]
[1737694572952,2.4e-07,104490.0,104480.0,0.5105578]
[1737694573154,2.4e-07,104490.0,104480.0,2.2369578]
[1737694573602,2.4e-07,104490.0,104480.0,2.2459578]
[1737694573812,2.4e-07,104490.0,104480.0,2.14038569]
[1737694574623,2.4e-07,104490.0,104480.0,2.10738569]
[1737694574828,2.4e-07,104490.0,104480.0,2.08738569]
[1737694575613,0.04929862,104510.0,104500.0,0.095693]
[1737694575614,0.23047073,104510.0,104500.0,0.095693]
[1737694575753,0.32781802,104510.0,104500.0,0.095693]
[1737694575970,0.22224591,104510.0,104500.0,0.095693]
[1737694576151,0.22656623,104510.0,104500.0,0.095693]
[1737694576790,0.22656623,104510.0,104500.0,0.101693]
[1737694577791,0.22656623,104510.0,104500.0,0.103693]